Cogmind - Beta 15 @@@ ROGUE MODE // 2025.05.22 @ 18:21:44 Player: Minty Result: Destroyed by LQ-W5I(R) with Subdweller Machine Gun Performance ------------- Evolutions (0) 0 Regions Visited (3) 600 Robots Destroyed (23) 115 Value Destroyed (650) 650 Prototype IDs (11) 220 Alien Tech Used (0) 0 Bonus (60) 60 TOTAL SCORE: 1645 Bonus ------- Follower Combat Kills 60 Cogmind --------- Core Integrity 0/250 Matter 73/300 Energy 265/265 System Corruption 0% Temperature Warning (399) Movement Rolling (120) Ox1 Location -10/Subcaves Parts ------- > --- POWER (1) -------- Reinforced Ion Engine > --- PROPULSION (2) --- Subdweller Monowheel Subdweller Monowheel > --- UTILITY (2) ------ Large Storage Unit Gun Armor > --- WEAPON (2+2) ----- Particle Cannon (+) Particle Cannon (+) Battle Cannon Battle Cannon > --- INVENTORY (15) --- Reinforced Ion Engine Reinforced Ion Engine Reinforced Ion Engine Disposable Heat Sink Small Battery (100) ECM Suite Makeshift Light Armor Plating Shield Generator Shield Generator Shield Generator Power Bank EM Pulse Gun Subdweller Laser Peak State ------------ > --- POWER ------------ Reinforced Ion Engine > --- PROPULSION ------- Subdweller Monowheel Subdweller Monowheel > --- UTILITY ---------- Large Storage Unit Gun Armor > --- WEAPON ----------- Particle Cannon Particle Cannon Battle Cannon Battle Cannon > --- INVENTORY -------- Reinforced Ion Engine Reinforced Ion Engine Reinforced Ion Engine Disposable Heat Sink Small Battery ECM Suite Makeshift Light Armor Plating Shield Generator Shield Generator Shield Generator Power Bank EM Pulse Gun Subdweller Laser [Rating: 27] Favorites ----------- Power Reinforced Ion Engine Engine Reinforced Ion Engine Propulsion Aluminum Leg Treads Light Treads Leg Aluminum Leg Wheel Subdweller Monowheel Utility Large Storage Unit Device Heat Sink Storage Large Storage Unit Protection Gun Armor Weapon Particle Cannon Energy Gun EM Pulse Gun Energy Cannon Particle Cannon Ballistic Gun Assault Rifle Ballistic Cannon Battle Cannon Launcher Subdweller Shrapnel Launcher Special Melee Weapon Datajack Build | -11 -10 -10 -10 ------- Run | Yrd Mat Min Sub Slots Evolved . | . . . . Power . | . . . . Propulsion . | . . . . Utility . | . . . . Weapon . | . . . . Parts Attached 33 | . 16 3 14 Power 1 | . 1 . . Engine 1 | . 1 . . Core . | . . . . Reactor . | . . . . Propulsion 10 | . 3 3 4 Treads 3 | . 3 . . Leg 3 | . . 3 . Wheel 4 | . . . 4 Hover . | . . . . Flight . | . . . . Utility 8 | . 6 . 2 Device 3 | . 2 . 1 Storage 4 | . 4 . . Processor . | . . . . Hackware . | . . . . Protection 1 | . . . 1 Artifact . | . . . . Weapon 14 | . 6 . 8 Energy Gun 3 | . 2 . 1 Energy Cannon 4 | . 2 . 2 Ballistic Gun 1 | . 1 . . Ballistic Cannon 4 | . 1 . 3 Launcher 1 | . . . 1 Special Weapon . | . . . . Impact Weapon . | . . . . Slashing Weapon . | . . . . Piercing Weapon . | . . . . Special Melee Weapon 1 | . . . 1 Unidentified Prototypes . | . . . . Parts Lost 6 | . 1 . 5 Power . | . . . . Propulsion 2 | . . . 2 Utility 1 | . . . 1 Weapon 3 | . 1 . 2 Highest Loss Streak 4 | . 1 . 4 To Critical Strikes . | . . . . Average Backups 13 | . 11 15 14 Power 2 | . 1 3 3 Propulsion 1 | . 3 2 . Utility 5 | . 4 5 6 Weapon 3 | . 2 4 4 Tool/Special . | . . . . Unused Backups 19 | . 9 . 10 Power 5 | . 2 . 3 Propulsion 2 | . 2 . . Utility 11 | . 5 . 6 Weapon 1 | . . . 1 Tool/Special . | . . . . Average Slot Usage (%) 95 | . 91 100 97 Engine 13 | . 14 14 13 Treads 8 | . 22 21 . Leg 16 | . 5 7 24 Wheel 1 | . . . 2 Device 9 | . 2 14 13 Storage 16 | . 23 14 13 Energy Gun 3 | . 4 . 3 Energy Cannon 13 | . 4 28 16 Ballistic Gun 2 | . 6 . . Ballistic Cannon 6 | . 7 . 7 Peak Build Rating 27 | . 12 18 27 Average Rating 12 | . 7 13 15 On Entrance 9 | 6 6 12 15 Naked Turns . | . . . . Heaviest Build 43 | 11 40 39 43 Greatest Support 40 | 20 40 40 40 Greatest Overweight (x) 12 | . . 1 12 Average Overweight (x) . | . . . 1 Largest Inventory Capacity 15 | . 15 15 15 Average Capacity 14 | . 13 15 15 Most Carried 15 | . 15 15 15 Average Carried 13 | . 11 15 14 Final Capacity 15 | 8 15 15 15 Final Carried 15 | 6 15 15 13 Class Distribution -------------------- 100% | Mutant Dominant Class ---------------- Mutant | -10/Materials Mutant | -10/Mines Mutant | -10/Subcaves Resources | -11 -10 -10 -10 ----------- Run | Yrd Mat Min Sub Matter Collected 983 | 186 548 36 213 Remotely . | . . . . Salvage Created 787 | . 582 . 205 Parts 37 | . 29 . 8 Haulers Intercepted 2 | . 2 . . Recyclers Shooed 1 | . 1 . . Parts Field Recycled . | . . . . Retrieved Matter . | . . . . Parts Self-Destructed 7 | . . . 7 Prevented . | . . . . Kills | -11 -10 -10 -10 ------- Run | Yrd Mat Min Sub Combat Hostiles Destroyed 19 | . 13 . 6 Guns 9 | . 9 . . Cannons 10 | . 4 . 6 Classes Destroyed 7 | . 5 . 2 Tunneler 1 | . 1 . . Hauler 2 | . 2 . . Recycler 1 | . 1 . . Swarmer 3 | . 3 . . Grunt 10 | . 10 . . Cobbler 1 | . . . 1 Subdweller 6 | . . . 6 Best Kill Streak 5 | . 5 . 3 Combat Bots Only 5 | . 5 . 3 Max Kills in Single Turn 2 | . 2 . 1 Gunslinging 1 | . 1 . . Exploded . | . . . . Melee . | . . . . Uniques/NPCs Destroyed . | . . . . Combat | -11 -10 -10 -10 -------- Run | Yrd Mat Min Sub Hostile Shots Fired 152 | . 90 11 51 Missed 38 | . 24 3 11 Hits 114 | . 66 8 40 Projectile 114 | . 66 8 40 Critical Strikes 3 | . 2 . 1 Damage Taken 1808 | . 756 109 943 Core 266 | . 125 12 129 Absorbed by Shields . | . . . . Core Remaining (%) 100 | 100 . . . Volleys Fired 103 | . 58 6 39 Largest 4 | . 2 2 4 Hottest 202 | . 136 136 202 Shots Fired 189 | . 98 9 82 Gun 84 | . 67 . 17 Cannon 104 | . 31 9 64 Launcher 1 | . . . 1 Special . | . . . . Kinetic 96 | . 56 . 40 Thermal 56 | . 8 9 39 Explosive . | . . . . Electromagnetic 37 | . 34 . 3 Robot Hit Streak 17 | . 8 8 17 Robot Miss Streak 3 | . 3 1 2 Penetration Max . | . . . . Secondary Targets 1 | . 1 . . Max Gunslinging Chain 1 | . 1 . . Shots Hit Robots 122 | . 59 8 55 Core Hits 38 | . 24 1 13 Critical Kills . | . . . . Critical Parts Destroyed . | . . . . Critical Strikes 6 | . 4 . 2 Blast 6 | . 4 . 2 Melee Attacks 2 | . . . 2 Impact . | . . . . Slashing . | . . . . Piercing . | . . . . Sneak Attacks 2 | . . . 2 Combat Hostiles . | . . . . Follow-up Attacks . | . . . . Damage Inflicted 2294 | . 944 172 1178 Guns 768 | . 550 . 218 Cannons 1402 | . 372 166 864 Explosions 96 | . . . 96 Melee . | . . . . Ramming 28 | . 22 6 . Kinetic 1167 | . 531 . 636 Thermal 780 | . 83 166 531 Explosive . | . . . . Electromagnetic 319 | . 308 . 11 Impact . | . . . . Slashing . | . . . . Piercing . | . . . . Highest Corruption . | . . . . Average Corruption . | . . . . Corruption Purged . | . . . . Corruption Blocked . | . . . . Overload Shots . | . . . . Overflow Damage 15 | . . . 15 Projectiles . | . . . . Explosions 15 | . . . 15 Melee . | . . . . Knockbacks 11 | . 4 . 7 Impact . | . . . . Kinetic 11 | . 4 . 7 Secondary . | . . . . Self-Inflicted Damage 37 | . . . 37 Shots 1 | . . . 1 Rammed 2 | . 1 1 . Targets Rammed 4 | . 3 1 . Kicked 1 | . 1 . . Crushed 1 | . 1 . . Highest Temperature 399 | . 120 235 399 Average Temperature 68 | . 37 102 202 Received Heat Transfer 495 | . 396 63 36 Siege Activations . | . . . . Martial Activations . | . . . . Shielding Activations . | . . . . Robots Disrupted . | . . . . Combat Hostiles . | . . . . Robots Corrupted . | . . . . Combat Hostiles . | . . . . Parts Fried . | . . . . Impact Corruptions . | . . . . Robots Melted . | . . . . Combat Hostiles . | . . . . Parts Melted . | . . . . Heat Transferred 1286 | . 148 296 842 Parts Sabotaged . | . . . . Parts Stolen . | . . . . Parts Stripped . | . . . . Power Chain Reactions . | . . . . Alert | -11 -10 -10 -10 ------- Run | Yrd Mat Min Sub Maximum Alert Level . | . . . . Low Security (%) 100 | . 100 100 . Level 1 . | . . . . Level 2 . | . . . . Level 3 . | . . . . Level 4 . | . . . . Level 5 . | . . . . High Security . | . . . . Max Security . | . . . . Peak Influence 104 | . 104 43 . Initial 16 | . . 16 . Average 19 | . 21 12 . Influence Increases 458 | . 405 53 . Destroy 0b10 Robot/C 300 | . 260 40 . Destroy 0b10 Robot/NC 20 | . 20 . . Destroy Leader 74 | . 64 10 . Allied During Kill 3 | . . 3 . Successful Hack 45 | . 45 . . Disable Machine 15 | . 15 . . Destroy Structure 1 | . 1 . . Influence Decreases 458 | . 362 73 23 Entered New Map 40 | . . 27 13 Time Decay 314 | . 258 46 10 Lost Part 10 | . 10 . . Purge Threat 94 | . 94 . . Squads Dispatched 5 | . 5 . . Investigation 5 | . 5 . . Extermination . | . . . . Reinforcement . | . . . . Assault . | . . . . Garrison . | . . . . Intercept . | . . . . Searches Triggered . | . . . . Construction Impeded . | . . . . Haulers Reinforced . | . . . . Active Scanning Responses . | . . . . Cargo Convoy Interrupts . | . . . . Stealth | -11 -10 -10 -10 --------- Run | Yrd Mat Min Sub Distress Signals 2 | . 2 . . Communications Jammed . | . . . . Distress Signals . | . . . . Times Spotted 38 | . 29 2 7 Peak Tracking Total 5 | . 5 2 3 Tactical Retreats 1 | . 1 . . Traps | -11 -10 -10 -10 ------- Run | Yrd Mat Min Sub Traps Triggered 1 | . 1 . . Indirectly . | . . . . Trap Hack Attempts 19 | . . . 19 Triggered . | . . . . Disarmed . | . . . . Reprogrammed 1 | . . . 1 Reused . | . . . . Traps Extracted . | . . . . Installed . | . . . . Triggered . | . . . . Machines | -11 -10 -10 -10 ---------- Run | Yrd Mat Min Sub Machines Disabled 4 | . 1 . 3 Max in Single Turn 1 | . 1 . 1 Machines Repaired . | . . . . Machines Dismantled . | . . . . Machines Sabotaged . | . . . . Overloaded Fab Kills . | . . . . Hacking | -11 -10 -10 -10 --------- Run | Yrd Mat Min Sub Machines Accessed 6 | . 5 . 1 Terminals 5 | . 5 . . Fabricators . | . . . . Repair Stations . | . . . . Recycling Units . | . . . . Scanalyzers . | . . . . Garrison Access . | . . . . Total Hacks 17 | . 16 . 1 Successful 12 | . 11 . 1 Failed 5 | . 5 . . Catastrophic 1 | . 1 . . Database Lockouts . | . . . . Manual 8 | . 8 . . Terminals 16 | . 16 . . Fabricators . | . . . . Repair Stations . | . . . . Recycling Units . | . . . . Scanalyzers . | . . . . Garrison Access . | . . . . Terminal Hacks 11 | . 10 . 1 Robot Analysis 1 | . 1 . . Level Access Points 1 | . 1 . . Terminal Index 1 | . 1 . . Alert Level 2 | . 2 . . Unreport Threat 1 | . 1 . . Locate Traps 2 | . 2 . . Dispatch Records 1 | . 1 . . Zone Layout 1 | . 1 . . Proto ID Catalog 1 | . . . 1 Fabricator Hacks . | . . . . Repair Station Hacks . | . . . . Recycling Unit Hacks . | . . . . Scanalyzer . | . . . . Garrison Access Hacks . | . . . . Unauthorized Hacks 1 | . 1 . . Terminals 1 | . 1 . . Botnet 1 | . 1 . . Fabricators . | . . . . Repair Stations . | . . . . Recycling Units . | . . . . Scanalyzers . | . . . . Garrison Access . | . . . . Data Cores Recovered . | . . . . Used . | . . . . Hacking Detections 5 | . 5 . . Full Trace Events 1 | . 1 . . Feedback Events . | . . . . Feedback Blocked . | . . . . Robot Schematics Acquired . | . . . . Robots Built . | . . . . Authchips . | . . . . Time . | . . . . Total Robot Build Rating . | . . . . Part Schematics Acquired . | . . . . Parts Built . | . . . . Authchips . | . . . . Time . | . . . . Total Part Build Rating . | . . . . Parts Repaired . | . . . . Time . | . . . . Parts Recycled . | . . . . Recycled Matter . | . . . . Retrieved Matter . | . . . . Retrieved Components . | . . . . Parts Scanalyzed . | . . . . Part Schematics Acquired . | . . . . Parts Damaged . | . . . . Bothacking | -11 -10 -10 -10 ------------ Run | Yrd Mat Min Sub Used RIF Installer . | . . . . Robots Hacked 1 | . . . 1 Non-combat 1 | . . . 1 Combat . | . . . . Robot Hacks Applied 2 | . . . 2 parse_system 2 | . . . 2 Relay Couplers Released . | . . . . Fabnet Peak Effective % . | . . . . Robots Rewired . | . . . . Allies Hacked . | . . . . Hacks Repelled . | . . . . Allies | -11 -10 -10 -10 -------- Run | Yrd Mat Min Sub Total Allies 2 | . . 2 . Largest Group 2 | . . 2 1 Highest-Rated Group 45 | . . 45 31 Highest-Rated Ally 31 | . . 31 31 Total Orders . | . . . . Ally Attacks 11 | . . 6 5 Total Damage 169 | . . 105 64 Kills 2 | . . 2 . Allies Corrupted . | . . . . Allies Melted . | . . . . Intel | -11 -10 -10 -10 ------- Run | Yrd Mat Min Sub Active Infowar (turns) 10 | . 10 . . ECM 10 | . 10 . . Robot Analysis Total 1 | . 1 . . Derelict Logs Recovered 2 | . . . 2 Drone Launches . | . . . . Drone Recoveries . | . . . . Exploration | -11 -10 -10 -10 ------------- Run | Yrd Mat Min Sub Turns Passed 3222 | . 1063 193 1966 Spaces Moved 1595 | 1 558 94 942 Core 4 | . . . 4 Treads 524 | . 452 72 . Legs 915 | 1 106 22 786 Wheels 152 | . . . 152 Hover . | . . . . Flight . | . . . . Fastest Speed 110 | 120 120 140 110 Average Speed 174 | 120 152 172 188 Slowest Speed 650 | 120 160 240 650 Overloaded Moves . | . . . . Propulsion Burnouts . | . . . . Robots Hopped . | . . . . Potential Cave-ins . | . . . . Cave-ins Triggered . | . . . . Exploration Rate (%) 36 | 2 64 13 66 Regions Visited 3 Branch Regions 2 Pre-discovered Areas . | . . . . Known Exits Taken . | . . . . Unknown Exits Taken 3 | 1 1 1 . Scrap Searched 9 | . . 1 8 Spaces Dug . | . . . . Terrain Destroyed 15 | . . . 15 Melee . | . . . . Projectile . | . . . . AOE 15 | . . . 15 Terrain Rammed . | . . . . Walls Destroyed . | . . . . Machines Disabled . | . . . . Actions | -11 -10 -10 -10 --------- Run | Yrd Mat Min Sub Total 1844 | . 677 115 1052 Wait 24 | . 1 9 14 Move 1592 | . 557 93 942 Hop . | . . . . Pick Up 25 | . 19 . 6 Fast Attach 10 | . 4 2 4 Attach 10 | . 5 . 5 Detach 4 | . 4 . . Swap 28 | . 11 2 15 Drop 23 | . 15 2 6 Fire 103 | . 58 6 39 Melee 2 | . . . 2 Ram . | . . . . Kick 1 | . 1 . . Crush 3 | . 2 1 . Escape Stasis . | . . . . Rewire . | . . . . Trap 19 | . . . 19 Miscellaneous . | . . . . Route ------- -11/Scrapyard -10/Materials (discovered 4 exits: *Mat x3 / [*Min]) -10/Mines -10/Subcaves (discovered 1 exit: Rec) History --------- Turn | Location | Event 1 | -11/Scrapyard | Discovered new exit (range 0) 1 | -11/Scrapyard | Entered Materials 315 | -10/Materials | Build established: Mutant 496 | -10/Materials | Identified exit to Materials 1054 | -10/Materials | Discovered new exit (range 6) 1064 | -10/Materials | Entered Mines 1176 | -10/Mines | Core integrity fell below 50% 1245 | -10/Mines | Discovered new exit (range 6) 1257 | -10/Mines | Entered Subcaves 1257 | -10/Subcaves | Accompanied by 1 ally 1262 | -10/Subcaves | Led the pair of lost Derelicts to an unsafe place 1276 | -10/Subcaves | Shifting Twisted Machinery released Sub. Power Source 1493 | -10/Subcaves | A swath of the cavern ceiling suddenly collapsed 1833 | -10/Subcaves | Learned Materials security intel 1941 | -10/Subcaves | Visited 4L-MR0's lab 1967 | -10/Subcaves | Found Power Bank 2186 | -10/Subcaves | Shifting Twisted Machinery released Battle Rifle 2195 | -10/Subcaves | Shifting Twisted Machinery released Battle Cannon 2742 | -10/Subcaves | Shifting Twisted Machinery released Battle Cannon 2751 | -10/Subcaves | Shifting Twisted Machinery released Battle Rifle 2868 | -10/Subcaves | Identified exit to Recycling 2967 | -10/Subcaves | A Subdweller sparked back to life 3023 | -10/Subcaves | Core integrity fell below 20% 3051 | -10/Subcaves | Lost 4 parts (2n1u1w) 3056 | -10/Subcaves | Found Gun Armor 3195 | -10/Subcaves | Attached Gun Armor, gained temporary slots: Weapon x2 3223 | -10/Subcaves | Destroyed by LQ-W5I(R) with Subdweller Machine Gun Last Messages --------------- 03056_ Acquired Gun Armor. 03057_ Acquired 19 matter. 03061_ Acquired Disposable Heat Sink. 03064_ BY-OQQ(u) builds Twisted Machinery. 03143_ Dropped Battle Cannon. 03146_ Acquired Sub. Monowheel. 03147_ O0-05D(O) suffers critical hit (Blast). 03147_ O0-05D(O) knocked back. 03156_ O0-05D(O) cries out in pain. 03156_ O0-05D(O) destroyed. 03163_ Acquired 3 matter. 03168_ Acquired 36 matter. 03195_ Core temporarily expanded with Weapon slot. 03201_ X5-XS2(R) knocked back. 03206_ X5-XS2(R) Sub. Laser blasted off. 03206_ X5-XS2(R) destroyed. 03213_ LQ-W5I(R) knocked back. 03220_ LQ-W5I(R) affixes Scrap Shield Fragment to Scrap Shield. 03220_ Destroyed Scrap Shield. 03220_ LQ-W5I(R) knocked back. Map ----- +----------------------------------------------------+ | ??????????????????????????????????????##??# | | ??????????????????????????????????????????## | | ??????????????????????????????????????????## ## | | ?????????????????????????????????????????## #? | | ?????????????????????????????????????????# #? | | ?????????????????????????????????????????# #? | | ????????????????????????????????????????## ##? | | ????????????????????????????????????????# ##? | | ????????????????????????????????????????# #? | | ???????????????????????????????????????## ## #? | | ????????????????????? ?????????????????# ##?##? | | ??????????????????? ?????????????????# ##??## | | ??????????????????? ?????????????????### ### | | ??????????????????? ??????????????????# | | ???????????????????# ??????????????????# | | ?????????????????### ??????????????????## | | ?????????????????# ???????????????????## | | ?????????????????# ????????????????????# | | ?????????????????# ????????????????????## | | ???????????????### ##??????????????###??## | | ??????????????## #######????????# ##### | | ??????????????# #????????# | | ???????????????# #????????# | | ????????????????# % % ###??????# # | | ??????????????????# %% ######### ##### | | ??????????????????#%R @ [ #????## | | ???????????????# %## ] ##????? | | ?????????? ???# ## #????? | | ????????? ?????# #### ## ######????? | | ????????? ???????# ##??########?????????? | | ??????????### ?????????# ###????????????????????? | | ???????????????????????####??????????????????????? | | ?????????????????????????????????????????????????? | | ?????????????????????????????????????????????????? | | ?????????????????????????????????????????????????? | | ?????????????????????????????????????????????????? | | ?????????????????????????????????????????????????? | | ?????????????????????????????????????????????????? | | ?????????????????????????????????????????????????? | | ?????????????????????????????????????????????????? | | ?????????????????????????????????????????????????? | | ?????????????????????????????????????????????????? | | ?????????????????????????????????????????????????? | | ?????????????????????????????????????????????????? | | ?????????????????????????????????????????????????? | | ?????????????????????????????????????????????????? | | ?????????????????????????????????????????????????? | | ?????????????????????????????????????????????????? | | | | | +----------------------------------------------------+ Best States ------------- Heat Dissipation 35 Coolant Potential 50 Energy Generation 12 Energy Capacity 265 Matter Stores 400 Matter Capacity 450 Sight Range 16 Terrain Scan Density 10 ECM Strength 1 Armor Coverage 60 Evasion (%) 55 Recoil Reduction 2 Item Schematics ----------------- None Robot Schematics ------------------ None Fabricated ------------ Nothing Repaired ---------- Nothing Alien Tech Used ----------------- None Achievements -------------- None Challenges ------------ None Game ------ Seed LargeChainObliterator Manual? 0 Play Time 00:19:20 Cumulative 1056.8 hours Start 2025.05.22 @ 18:01:30 End 2025.05.22 @ 18:21:44 Sessions 1 Manual Loads 0 Difficulty Rogue Special Mode None Game No. 1311 Rogue 1028 Adventurer 124 Explorer 159 Win Type - Total 47 Types 33/0/8/4/1/0/0/1/0/0 Lore% 91 Gallery% 86 Achievement% 80 Wizard Run 0 Options --------- Layout 0 ASCII 0 Keyboard 1 Movement Numpad Keybinds 0 Fullscreen 2 Font 18/X11 Map View 76x50 Zoom Use 0% Tactical HUD 1 Map Filters NONE Filters NONE Steam 1 RUN: 39159913-ee6e-4219-b33c-120606daa69e